[Event "Late-Titled-Tuesday-Blitz-January-16-2024"]
[Site "Chess.com"]
[Date "2024.01.16"]
[Round "3"]
[White "GHANDEEVAM2003"]
[Black "GMAkobianSTL"]
[Result "1-0"]
[WhiteElo "3000"]
[BlackElo "2699"]
[TimeControl "180+1"]
[EndTime "14:28:12 PST"]
[Termination "GHANDEEVAM2003 won on time"]

1. c4 {[%clk 0:03:00.9]} 1... e6 {[%clk 0:02:59.7]} 2. Nf3 {[%clk 0:03:00.5]}
2... d5 {[%clk 0:02:59.6]} 3. e3 {[%clk 0:03:01.2]} 3... Nf6 {[%clk 0:02:59.4]}
4. Nc3 {[%clk 0:03:01.6]} 4... Be7 {[%clk 0:02:57.5]} 5. b3 {[%clk 0:03:00]}
5... b6 {[%clk 0:02:57.7]} 6. Bb2 {[%clk 0:02:58.8]} 6... Bb7 {[%clk 0:02:58.3]}
7. cxd5 {[%clk 0:02:59.2]} 7... exd5 {[%clk 0:02:57.6]} 8. Ne2 {[%clk
0:02:59.4]} 8... Nbd7 {[%clk 0:02:55.7]} 9. Rc1 {[%clk 0:02:56.3]} 9... O-O
{[%clk 0:02:54.4]} 10. Ned4 {[%clk 0:02:53.8]} 10... Re8 {[%clk 0:02:52.3]} 11.
Nc6 {[%clk 0:02:50]} 11... Bxc6 {[%clk 0:02:26.4]} 12. Rxc6 {[%clk 0:02:50.9]}
12... Nb8 {[%clk 0:02:26.8]} 13. Rc1 {[%clk 0:02:45.2]} 13... c5 {[%clk
0:02:26.6]} 14. Qc2 {[%clk 0:02:30.8]} 14... Nc6 {[%clk 0:02:24.9]} 15. Bb5
{[%clk 0:02:28.2]} 15... Rc8 {[%clk 0:02:23.6]} 16. O-O {[%clk 0:02:27.3]} 16...
a6 {[%clk 0:02:21.1]} 17. Be2 {[%clk 0:02:25]} 17... b5 {[%clk 0:02:14.1]} 18.
Qf5 {[%clk 0:02:12.7]} 18... g6 {[%clk 0:02:11.7]} 19. Qh3 {[%clk 0:02:08.8]}
19... d4 {[%clk 0:02:08]} 20. exd4 {[%clk 0:02:06.6]} 20... cxd4 {[%clk
0:01:53.6]} 21. Bd3 {[%clk 0:02:06.5]} 21... Nd5 {[%clk 0:01:38]} 22. g3 {[%clk
0:01:54.6]} 22... Ndb4 {[%clk 0:01:23.3]} 23. Bb1 {[%clk 0:01:51.8]} 23... Bf6
{[%clk 0:00:47.3]} 24. a3 {[%clk 0:01:39.5]} 24... d3 {[%clk 0:00:43]} 25. Bc3
{[%clk 0:01:30.2]} 25... Nd5 {[%clk 0:00:32.1]} 26. Rfd1 {[%clk 0:01:24.6]}
26... Nxc3 {[%clk 0:00:24.4]} 27. dxc3 {[%clk 0:01:25.5]} 27... Qd5 {[%clk
0:00:24.6]} 28. Nd2 {[%clk 0:01:15.5]} 28... Ne5 {[%clk 0:00:21.5]} 29. Qg2
{[%clk 0:01:15.3]} 29... Qxg2+ {[%clk 0:00:19.4]} 30. Kxg2 {[%clk 0:01:16.2]}
30... Be7 {[%clk 0:00:13.3]} 31. b4 {[%clk 0:01:07.2]} 31... Red8 {[%clk
0:00:13.2]} 32. Nb3 {[%clk 0:01:04.7]} 32... Nc4 {[%clk 0:00:09.6]} 33. Rxd3
{[%clk 0:01:02.6]} 33... Rxd3 {[%clk 0:00:08.7]} 34. Bxd3 {[%clk 0:01:03.5]}
34... Nxa3 {[%clk 0:00:09]} 35. Be4 {[%clk 0:01:02.2]} 35... Rc7 {[%clk
0:00:06.9]} 36. Bd5 {[%clk 0:00:57.7]} 36... Nc4 {[%clk 0:00:02.1]} 37. Bxc4
{[%clk 0:00:50.6]} 37... Rxc4 {[%clk 0:00:01.6]} 38. Nd2 {[%clk 0:00:37.2]}
38... Rc6 {[%clk 0:00:01.6]} 39. Nb3 {[%clk 0:00:34.5]} 39... Rc4 {[%clk
0:00:01.2]} 40. Na5 {[%clk 0:00:23]} 40... Rc7 {[%clk 0:00:01.3]} 41. Nb3 {[%clk
0:00:22.8]} 41... Bf6 {[%clk 0:00:01.2]} 42. Nc5 {[%clk 0:00:21.9]} 42... Rc6
{[%clk 0:00:01.8]} 43. Kf3 {[%clk 0:00:15.9]} 43... Be7 {[%clk 0:00:01.8]} 44.
Nd3 {[%clk 0:00:15.7]} 44... f5 {[%clk 0:00:02]} 45. Ke2 {[%clk 0:00:15.1]}
45... Bf6 {[%clk 0:00:02.4]} 46. Kd2 {[%clk 0:00:15.8]} 46... Kf7 {[%clk
0:00:02.4]} 47. f4 {[%clk 0:00:15.4]} 47... Ke6 {[%clk 0:00:01.6]} 48. Nc5+
{[%clk 0:00:15.6]} 48... Kd6 {[%clk 0:00:01.9]} 49. Kc2 {[%clk 0:00:14.6]} 49...
Kd5 {[%clk 0:00:01.4]} 50. Kb3 {[%clk 0:00:13.6]} 50... Rxc5 {[%clk 0:00:01.1]}
51. bxc5 {[%clk 0:00:14.5]} 51... Kxc5 {[%clk 0:00:01.7]} 52. Re1 {[%clk
0:00:14.1]} 52... a5 {[%clk 0:00:02]} 53. Re6 {[%clk 0:00:13.6]} 53... a4+
{[%clk 0:00:02.3]} 54. Kc2 {[%clk 0:00:14.3]} 54... Bd8 {[%clk 0:00:02.4]} 55.
Re8 {[%clk 0:00:14.8]} 55... Bb6 {[%clk 0:00:01.7]} 56. Re7 {[%clk 0:00:14.7]}
1-0

[Event "Late-Titled-Tuesday-Blitz-January-16-2024"]
[Site "Chess.com"]
[Date "2024.01.16"]
[Round "3"]
[White "Jagerrmeisterr"]
[Black "MITerryble"]
[Result "0-1"]
[WhiteElo "2707"]
[BlackElo "3029"]
[TimeControl "180+1"]
[EndTime "14:28:14 PST"]
[Termination "MITerryble won by resignation"]

1. e4 {[%clk 0:03:00.9]} 1... e6 {[%clk 0:03:00.4]} 2. d4 {[%clk 0:03:00.8]}
2... d5 {[%clk 0:03:01.1]} 3. Nd2 {[%clk 0:03:01.3]} 3... Be7 {[%clk 0:03:01.1]}
4. g3 {[%clk 0:02:43.8]} 4... c5 {[%clk 0:02:52.1]} 5. dxc5 {[%clk 0:02:40.1]}
5... Nf6 {[%clk 0:02:47.6]} 6. Qe2 {[%clk 0:02:38]} 6... O-O {[%clk 0:02:43]} 7.
Bg2 {[%clk 0:02:35]} 7... Na6 {[%clk 0:02:42.8]} 8. e5 {[%clk 0:02:31.7]} 8...
Nd7 {[%clk 0:02:42.1]} 9. Ngf3 {[%clk 0:02:28.6]} 9... Naxc5 {[%clk 0:02:40.2]}
10. O-O {[%clk 0:02:28.7]} 10... b5 {[%clk 0:02:37.8]} 11. Rd1 {[%clk
0:02:29.3]} 11... b4 {[%clk 0:02:37.4]} 12. h4 {[%clk 0:02:23.8]} 12... Ba6
{[%clk 0:02:30.6]} 13. Qe3 {[%clk 0:02:21.7]} 13... Qc7 {[%clk 0:02:31]} 14. h5
{[%clk 0:02:13.1]} 14... Rac8 {[%clk 0:02:18.2]} 15. a3 {[%clk 0:01:55.2]} 15...
bxa3 {[%clk 0:02:12.7]} 16. Rxa3 {[%clk 0:01:53]} 16... Nb8 {[%clk 0:01:48.1]}
17. h6 {[%clk 0:01:45.6]} 17... g6 {[%clk 0:01:48.1]} 18. Nd4 {[%clk 0:01:24.3]}
18... Ncd7 {[%clk 0:01:47.3]} 19. N2f3 {[%clk 0:00:45.6]} 19... Bxa3 {[%clk
0:01:46.4]} 20. bxa3 {[%clk 0:00:46.1]} 20... Nc6 {[%clk 0:01:42.3]} 21. Nxc6
{[%clk 0:00:42.5]} 21... Qxc6 {[%clk 0:01:43.2]} 22. Nd4 {[%clk 0:00:42.9]}
22... Qc7 {[%clk 0:01:40.1]} 23. Bb2 {[%clk 0:00:27.8]} 23... Rb8 {[%clk
0:01:30.3]} 24. Ba1 {[%clk 0:00:27.1]} 24... Rfc8 {[%clk 0:01:30.2]} 25. Bxd5
{[%clk 0:00:22.6]} 25... Qxe5 {[%clk 0:01:11.1]} 26. Qxe5 {[%clk 0:00:20.5]}
26... Nxe5 {[%clk 0:01:12]} 27. Nxe6 {[%clk 0:00:21.2]} 27... fxe6 {[%clk
0:01:04.1]} 28. Bxe6+ {[%clk 0:00:19.7]} 28... Nf7 {[%clk 0:01:04.4]} 29. Rd7
{[%clk 0:00:16]} 29... Rf8 {[%clk 0:01:00.3]} 30. Rxa7 {[%clk 0:00:16.3]} 30...
Rb1+ {[%clk 0:00:57.5]} 31. Kh2 {[%clk 0:00:16.7]} 31... Bc8 {[%clk 0:00:48.4]}
32. Bb3 {[%clk 0:00:04.8]} 32... Rxa1 {[%clk 0:00:47.6]} 33. Rc7 {[%clk
0:00:04.2]} 33... Bg4 {[%clk 0:00:41.3]} 34. Kg2 {[%clk 0:00:03.9]} 34... Rb1
{[%clk 0:00:41.2]} 35. f3 {[%clk 0:00:03.9]} 35... Rxb3 {[%clk 0:00:33]} 36.
cxb3 {[%clk 0:00:03.8]} 36... Be6 {[%clk 0:00:33.9]} 37. b4 {[%clk 0:00:03.3]}
37... Ra8 {[%clk 0:00:33.1]} 38. Re7 {[%clk 0:00:02.7]} 38... Bc4 {[%clk
0:00:30.6]} 39. a4 {[%clk 0:00:02.1]} 39... Kf8 {[%clk 0:00:29.9]} 40. Rc7
{[%clk 0:00:02.5]} 40... Bd3 {[%clk 0:00:27.3]} 41. a5 {[%clk 0:00:02.9]} 41...
Nxh6 {[%clk 0:00:26.7]} 42. g4 {[%clk 0:00:02.9]} 42... Nf7 {[%clk 0:00:27]} 43.
Kg3 {[%clk 0:00:03.2]} 43... Rb8 {[%clk 0:00:27.5]} 44. Rc3 {[%clk 0:00:02.9]}
44... Ba6 {[%clk 0:00:27.5]} 45. f4 {[%clk 0:00:03.6]} 45... Rxb4 {[%clk
0:00:27.4]} 46. Rc6 {[%clk 0:00:04.5]} 46... Bb7 {[%clk 0:00:26.9]} 47. Rc7
{[%clk 0:00:05.1]} 47... Rb5 {[%clk 0:00:25.4]} 48. Kh4 {[%clk 0:00:04.6]} 48...
Bf3 {[%clk 0:00:24.1]} 49. a6 {[%clk 0:00:04.7]} 49... Ra5 {[%clk 0:00:23.1]}
50. a7 {[%clk 0:00:05.3]} 50... Kg7 {[%clk 0:00:22.1]} 51. Kg3 {[%clk
0:00:05.9]} 51... Ra3 {[%clk 0:00:21.5]} 52. f5 {[%clk 0:00:06.6]} 52... g5
{[%clk 0:00:20]} 53. Kf2 {[%clk 0:00:06.8]} 53... Bxg4 {[%clk 0:00:19.1]} 54.
Kg2 {[%clk 0:00:05.7]} 54... Bxf5 {[%clk 0:00:19.4]} 55. Kf2 {[%clk 0:00:06.3]}
55... h5 {[%clk 0:00:19.8]} 56. Kg2 {[%clk 0:00:06.9]} 56... h4 {[%clk
0:00:20.3]} 57. Kh2 {[%clk 0:00:07.6]} 57... g4 {[%clk 0:00:20.7]} 58. Kg2
{[%clk 0:00:08.3]} 58... Be4+ {[%clk 0:00:20.8]} 59. Kf2 {[%clk 0:00:08.7]}
59... g3+ {[%clk 0:00:21.2]} 60. Ke2 {[%clk 0:00:08.8]} 60... g2 {[%clk
0:00:21.7]} 61. Kf2 {[%clk 0:00:09.4]} 61... Ra2+ {[%clk 0:00:21.9]} 62. Ke3
{[%clk 0:00:09]} 62... g1=Q+ {[%clk 0:00:22.1]} 63. Kf4 {[%clk 0:00:08.3]} 63...
Qg3+ {[%clk 0:00:21.3]} 64. Kxe4 {[%clk 0:00:08.8]} 64... Qxc7 {[%clk
0:00:21.3]} 65. a8=Q {[%clk 0:00:09.2]} 0-1

[Event "Late-Titled-Tuesday-Blitz-January-16-2024"]
[Site "Chess.com"]
[Date "2024.01.16"]
[Round "3"]
[White "secretsuperstar7"]
[Black "waltereador"]
[Result "1-0"]
[WhiteElo "2499"]
[BlackElo "2261"]
[TimeControl "180+1"]
[EndTime "14:28:20 PST"]
[Termination "secretsuperstar7 won by checkmate"]

1. c4 {[%clk 0:02:57.8]} 1... Nf6 {[%clk 0:02:46.6]} 2. Nc3 {[%clk 0:02:56.9]}
2... g6 {[%clk 0:02:46.4]} 3. g3 {[%clk 0:02:57.3]} 3... Bg7 {[%clk 0:02:46.3]}
4. Bg2 {[%clk 0:02:56.4]} 4... c6 {[%clk 0:02:46.9]} 5. Nf3 {[%clk 0:02:57.1]}
5... d5 {[%clk 0:02:47.2]} 6. cxd5 {[%clk 0:02:54.2]} 6... cxd5 {[%clk
0:02:47.5]} 7. d4 {[%clk 0:02:54.7]} 7... Nc6 {[%clk 0:02:47.9]} 8. O-O {[%clk
0:02:54.6]} 8... O-O {[%clk 0:02:47.8]} 9. Ne5 {[%clk 0:02:54.3]} 9... e6 {[%clk
0:02:42.6]} 10. e4 {[%clk 0:02:45.4]} 10... dxe4 {[%clk 0:02:40.9]} 11. Nxc6
{[%clk 0:02:43.5]} 11... bxc6 {[%clk 0:02:41.2]} 12. Nxe4 {[%clk 0:02:42.9]}
12... Nxe4 {[%clk 0:02:39.9]} 13. Bxe4 {[%clk 0:02:43.8]} 13... Qxd4 {[%clk
0:02:40]} 14. Bxc6 {[%clk 0:02:41.3]} 14... Ba6 {[%clk 0:02:25.1]} 15. Qxd4
{[%clk 0:02:34.9]} 15... Bxd4 {[%clk 0:02:23.3]} 16. Rd1 {[%clk 0:02:35.1]}
16... Rac8 {[%clk 0:02:22.4]} 17. Rxd4 {[%clk 0:02:13]} 17... Rxc6 {[%clk
0:02:22]} 18. Bh6 {[%clk 0:02:13]} 18... Re8 {[%clk 0:02:18.1]} 19. Rad1 {[%clk
0:02:12.7]} 19... Bc4 {[%clk 0:02:12.5]} 20. Rd8 {[%clk 0:02:07.5]} 20... Rc8
{[%clk 0:02:11.4]} 21. Rxe8+ {[%clk 0:02:04.9]} 21... Rxe8 {[%clk 0:02:10.9]}
22. b3 {[%clk 0:02:05.4]} 22... Bd5 {[%clk 0:02:11]} 23. Rc1 {[%clk 0:02:04.5]}
23... a5 {[%clk 0:02:04.9]} 24. h4 {[%clk 0:02:00.2]} 24... a4 {[%clk 0:02:04]}
25. bxa4 {[%clk 0:01:58.4]} 25... Bxa2 {[%clk 0:02:04]} 26. a5 {[%clk
0:01:57.4]} 26... Bd5 {[%clk 0:02:02.8]} 27. a6 {[%clk 0:01:57]} 27... Ra8
{[%clk 0:02:02.3]} 28. a7 {[%clk 0:01:55.7]} 28... f5 {[%clk 0:02:02.3]} 29. Rc7
{[%clk 0:01:54.7]} 29... e5 {[%clk 0:01:53.4]} 30. Kf1 {[%clk 0:01:47.2]} 30...
Re8 {[%clk 0:01:33.9]} 31. Ke2 {[%clk 0:01:40.8]} 31... f4 {[%clk 0:01:32.1]}
32. gxf4 {[%clk 0:01:28]} 32... exf4+ {[%clk 0:01:32.3]} 33. Kd2 {[%clk
0:01:28.4]} 33... f3 {[%clk 0:01:30.5]} 34. Kd3 {[%clk 0:01:23.3]} 34... Rd8
{[%clk 0:01:27]} 35. Ke3 {[%clk 0:01:21.9]} 35... Ba8 {[%clk 0:01:24.2]} 36. Kf4
{[%clk 0:01:15.1]} 36... Re8 {[%clk 0:01:15.8]} 37. Kg5 {[%clk 0:01:14.4]} 37...
Bd5 {[%clk 0:01:09.6]} 38. Rg7+ {[%clk 0:01:04.1]} 38... Kh8 {[%clk 0:01:09.4]}
39. Rc7 {[%clk 0:01:02.3]} 39... Kg8 {[%clk 0:01:07.2]} 40. Kf4 {[%clk
0:00:56.1]} 40... Re4+ {[%clk 0:01:05.4]} 41. Kg3 {[%clk 0:00:48]} 41... Re8
{[%clk 0:01:04.9]} 42. Rd7 {[%clk 0:00:45.9]} 42... Bc6 {[%clk 0:01:02.5]} 43.
Rg7+ {[%clk 0:00:41.5]} 43... Kh8 {[%clk 0:01:02.3]} 44. Rc7 {[%clk 0:00:41.5]}
44... Bd5 {[%clk 0:01:01.3]} 45. Be3 {[%clk 0:00:39.2]} 45... h5 {[%clk
0:00:51.7]} 46. Bd4+ {[%clk 0:00:38.2]} 46... Kg8 {[%clk 0:00:52]} 47. Rg7+
{[%clk 0:00:34.4]} 47... Kf8 {[%clk 0:00:52.1]} 48. Rxg6 {[%clk 0:00:34.5]}
48... Re4 {[%clk 0:00:49.1]} 49. Rd6 {[%clk 0:00:25.7]} 49... Rg4+ {[%clk
0:00:44.9]} 50. Kh3 {[%clk 0:00:26]} 50... Be4 {[%clk 0:00:43.1]} 51. Bc5 {[%clk
0:00:15.6]} 51... Ke8 {[%clk 0:00:41.9]} 52. Re6+ {[%clk 0:00:14.4]} 52... Kd7
{[%clk 0:00:40.1]} 53. Rxe4 {[%clk 0:00:14.7]} 53... Rg8 {[%clk 0:00:36.6]} 54.
Re7+ {[%clk 0:00:14.7]} 54... Kc6 {[%clk 0:00:36.4]} 55. Be3 {[%clk 0:00:14.9]}
55... Ra8 {[%clk 0:00:29.2]} 56. Kg3 {[%clk 0:00:14.3]} 56... Rf8 {[%clk
0:00:28.3]} 57. Rg7 {[%clk 0:00:13.2]} 57... Kb5 {[%clk 0:00:25.7]} 58. Rg5+
{[%clk 0:00:13.1]} 58... Ka6 {[%clk 0:00:25.7]} 59. Rxh5 {[%clk 0:00:13.6]}
59... Kb7 {[%clk 0:00:26.1]} 60. Rg5 {[%clk 0:00:13.9]} 60... Ka8 {[%clk
0:00:26.4]} 61. h5 {[%clk 0:00:14.3]} 61... Kb7 {[%clk 0:00:19.7]} 62. h6 {[%clk
0:00:14.5]} 62... Rf7 {[%clk 0:00:19.4]} 63. Rg7 {[%clk 0:00:14]} 63... Ka8
{[%clk 0:00:17.7]} 64. Rg8+ {[%clk 0:00:12.2]} 64... Kb7 {[%clk 0:00:18.1]} 65.
a8=Q+ {[%clk 0:00:12.3]} 65... Kc7 {[%clk 0:00:17.5]} 66. Rc8+ {[%clk
0:00:12.3]} 66... Kd7 {[%clk 0:00:17.1]} 67. Qc6+ {[%clk 0:00:12.2]} 67... Ke7
{[%clk 0:00:17.3]} 68. Re8# {[%clk 0:00:12.8]} 1-0

[Event "Late-Titled-Tuesday-Blitz-January-16-2024"]
[Site "Chess.com"]
[Date "2024.01.16"]
[Round "3"]
[White "The_Straightforward_Rook"]
[Black "yaguigor"]
[Result "1-0"]
[WhiteElo "2476"]
[BlackElo "2621"]
[TimeControl "180+1"]
[EndTime "14:28:30 PST"]
[Termination "The_Straightforward_Rook won on time"]

1. e4 {[%clk 0:02:57.5]} 1... c5 {[%clk 0:02:58.7]} 2. c3 {[%clk 0:02:57.2]}
2... Nf6 {[%clk 0:02:57.7]} 3. e5 {[%clk 0:02:56.6]} 3... Nd5 {[%clk 0:02:57.2]}
4. Nf3 {[%clk 0:02:57.5]} 4... d6 {[%clk 0:02:55.4]} 5. Bc4 {[%clk 0:02:57.2]}
5... e6 {[%clk 0:02:54.6]} 6. d4 {[%clk 0:02:57.1]} 6... cxd4 {[%clk 0:02:54.7]}
7. cxd4 {[%clk 0:02:58]} 7... Nc6 {[%clk 0:02:54.5]} 8. O-O {[%clk 0:02:51.7]}
8... Be7 {[%clk 0:02:54.3]} 9. Qe2 {[%clk 0:02:51.4]} 9... O-O {[%clk
0:02:53.6]} 10. Rd1 {[%clk 0:02:51.6]} 10... Na5 {[%clk 0:02:41.7]} 11. Bd3
{[%clk 0:02:46.9]} 11... Nb4 {[%clk 0:02:40.4]} 12. Be4 {[%clk 0:02:45.6]} 12...
d5 {[%clk 0:02:37.5]} 13. Bd3 {[%clk 0:02:46.2]} 13... Nxd3 {[%clk 0:02:36.7]}
14. Rxd3 {[%clk 0:02:46.6]} 14... b6 {[%clk 0:02:34.6]} 15. Re3 {[%clk
0:02:32.5]} 15... Nc4 {[%clk 0:02:33]} 16. Rb3 {[%clk 0:02:29]} 16... a5 {[%clk
0:02:30.9]} 17. a3 {[%clk 0:02:22.8]} 17... Ba6 {[%clk 0:02:28.9]} 18. Qd1
{[%clk 0:02:21.2]} 18... Rc8 {[%clk 0:02:27.5]} 19. Bf4 {[%clk 0:02:17.7]} 19...
a4 {[%clk 0:02:20.1]} 20. Rc3 {[%clk 0:02:16.9]} 20... Nxb2 {[%clk 0:02:19.1]}
21. Qc2 {[%clk 0:02:14.3]} 21... Nd3 {[%clk 0:02:07.7]} 22. Bd2 {[%clk
0:02:03.9]} 22... Qd7 {[%clk 0:02:02.6]} 23. Qd1 {[%clk 0:01:53.6]} 23... Nb2
{[%clk 0:01:57.8]} 24. Qc2 {[%clk 0:01:47.1]} 24... Nc4 {[%clk 0:01:56]} 25. Bg5
{[%clk 0:01:45]} 25... h6 {[%clk 0:01:44]} 26. Bxe7 {[%clk 0:01:41.7]} 26...
Qxe7 {[%clk 0:01:44.9]} 27. Qxa4 {[%clk 0:01:41.6]} 27... Na5 {[%clk 0:01:37.8]}
28. Qc2 {[%clk 0:01:38]} 28... Rxc3 {[%clk 0:01:26.1]} 29. Nxc3 {[%clk
0:01:35.4]} 29... Rc8 {[%clk 0:01:26.7]} 30. Qb2 {[%clk 0:01:32.6]} 30... Qc7
{[%clk 0:01:24.7]} 31. Nb5 {[%clk 0:01:22.3]} 31... Qc2 {[%clk 0:01:16.3]} 32.
Qxc2 {[%clk 0:01:15.9]} 32... Rxc2 {[%clk 0:01:17.2]} 33. Nd6 {[%clk 0:01:15.1]}
33... Bd3 {[%clk 0:01:09.3]} 34. h4 {[%clk 0:01:11.1]} 34... Rb2 {[%clk
0:01:02.7]} 35. Ne1 {[%clk 0:01:05.3]} 35... Bg6 {[%clk 0:00:58.8]} 36. Rc1
{[%clk 0:01:04.6]} 36... Nc4 {[%clk 0:00:54]} 37. g4 {[%clk 0:00:59.3]} 37...
Rb1 {[%clk 0:00:42.1]} 38. Rxb1 {[%clk 0:00:54.2]} 38... Bxb1 {[%clk 0:00:43]}
39. a4 {[%clk 0:00:47.3]} 39... Kf8 {[%clk 0:00:39.9]} 40. Nxc4 {[%clk
0:00:37.7]} 40... dxc4 {[%clk 0:00:38.5]} 41. Kf1 {[%clk 0:00:38.6]} 41... Ke7
{[%clk 0:00:34.6]} 42. Ke2 {[%clk 0:00:38.9]} 42... Kd7 {[%clk 0:00:34.5]} 43.
Kd2 {[%clk 0:00:39.5]} 43... Kc6 {[%clk 0:00:28.5]} 44. Kc3 {[%clk 0:00:37.4]}
44... Kd5 {[%clk 0:00:27.2]} 45. f3 {[%clk 0:00:34]} 45... Ba2 {[%clk
0:00:22.1]} 46. Ng2 {[%clk 0:00:33.7]} 46... Bb3 {[%clk 0:00:20.2]} 47. Ne3+
{[%clk 0:00:33.8]} 47... Kc6 {[%clk 0:00:20.7]} 48. Nxc4 {[%clk 0:00:34]} 48...
Bxa4 {[%clk 0:00:18.6]} 49. Ne3 {[%clk 0:00:32.6]} 49... Kd7 {[%clk 0:00:12.3]}
50. f4 {[%clk 0:00:32.1]} 50... Bc6 {[%clk 0:00:11.4]} 51. g5 {[%clk 0:00:31.7]}
51... hxg5 {[%clk 0:00:10.7]} 52. fxg5 {[%clk 0:00:31.6]} 52... g6 {[%clk
0:00:09.3]} 53. Kb4 {[%clk 0:00:29.8]} 53... Ke7 {[%clk 0:00:08.2]} 54. Nc4
{[%clk 0:00:29.6]} 54... b5 {[%clk 0:00:06.3]} 55. Nd6 {[%clk 0:00:29.8]} 55...
Bd5 {[%clk 0:00:05.2]} 56. Nxb5 {[%clk 0:00:29.8]} 56... Bc6 {[%clk 0:00:04.9]}
57. Nd6 {[%clk 0:00:30.1]} 57... Bd5 {[%clk 0:00:04.8]} 58. Kc5 {[%clk
0:00:30.7]} 58... Bf3 {[%clk 0:00:04.6]} 59. Nc8+ {[%clk 0:00:29.4]} 59... Kd7
{[%clk 0:00:03.9]} 60. Nd6 {[%clk 0:00:29.8]} 60... Ke7 {[%clk 0:00:04.1]} 61.
Kb6 {[%clk 0:00:29.7]} 61... Bd5 {[%clk 0:00:02.5]} 62. Kc7 {[%clk 0:00:30]}
62... Bf3 {[%clk 0:00:02.3]} 63. Nc8+ {[%clk 0:00:29.8]} 63... Ke8 {[%clk
0:00:02.3]} 64. Nb6 {[%clk 0:00:27.1]} 64... Bg2 {[%clk 0:00:01.8]} 65. Kd6
{[%clk 0:00:26.8]} 65... Kd8 {[%clk 0:00:01.6]} 66. d5 {[%clk 0:00:26.7]} 1-0

[Event "Late-Titled-Tuesday-Blitz-January-16-2024"]
[Site "Chess.com"]
[Date "2024.01.16"]
[Round "3"]
[White "dropstoneDP"]
[Black "SchmakAttack"]
[Result "0-1"]
[WhiteElo "3002"]
[BlackElo "2723"]
[TimeControl "180+1"]
[EndTime "14:28:31 PST"]
[Termination "SchmakAttack won by resignation"]

1. e4 {[%clk 0:02:59.8]} 1... e6 {[%clk 0:02:59.7]} 2. d4 {[%clk 0:02:59.5]}
2... d5 {[%clk 0:03:00]} 3. e5 {[%clk 0:02:59.3]} 3... c5 {[%clk 0:02:59.3]} 4.
c3 {[%clk 0:02:59.9]} 4... Nc6 {[%clk 0:02:59.3]} 5. Nf3 {[%clk 0:03:00.4]} 5...
Qb6 {[%clk 0:02:59.4]} 6. a3 {[%clk 0:02:59.7]} 6... c4 {[%clk 0:02:59.2]} 7.
Nbd2 {[%clk 0:02:57.9]} 7... Na5 {[%clk 0:02:59.1]} 8. Rb1 {[%clk 0:02:58.4]}
8... Bd7 {[%clk 0:02:58.3]} 9. Be2 {[%clk 0:02:54]} 9... Ne7 {[%clk 0:02:44.3]}
10. O-O {[%clk 0:02:52.6]} 10... Qc7 {[%clk 0:02:33.6]} 11. Ne1 {[%clk
0:02:39.1]} 11... O-O-O {[%clk 0:02:15.7]} 12. g3 {[%clk 0:02:30]} 12... Kb8
{[%clk 0:02:12.1]} 13. Ng2 {[%clk 0:02:29.2]} 13... Nc8 {[%clk 0:02:08.6]} 14.
Qe1 {[%clk 0:02:25.1]} 14... Ba4 {[%clk 0:02:04.4]} 15. Bd1 {[%clk 0:02:21.6]}
15... Nb6 {[%clk 0:01:59.3]} 16. h4 {[%clk 0:02:13.7]} 16... Qc6 {[%clk
0:01:40]} 17. h5 {[%clk 0:02:10.7]} 17... h6 {[%clk 0:01:37.8]} 18. Qe2 {[%clk
0:01:57]} 18... Bxd1 {[%clk 0:01:34.7]} 19. Rxd1 {[%clk 0:01:57.9]} 19... Na4
{[%clk 0:01:34.8]} 20. Nf3 {[%clk 0:01:54.8]} 20... Bxa3 {[%clk 0:01:17.5]} 21.
bxa3 {[%clk 0:01:39.7]} 21... Nxc3 {[%clk 0:01:17.5]} 22. Qd2 {[%clk 0:01:36.2]}
22... Nxb1 {[%clk 0:01:08]} 23. Qxa5 {[%clk 0:01:35.5]} 23... c3 {[%clk
0:01:08.2]} 24. Be3 {[%clk 0:01:25.7]} 24... c2 {[%clk 0:00:56]} 25. Rc1 {[%clk
0:01:25.2]} 25... Rc8 {[%clk 0:00:50.2]} 26. Nge1 {[%clk 0:01:23.1]} 26... b6
{[%clk 0:00:27.6]} 27. Qb4 {[%clk 0:01:21.2]} 27... Qc4 {[%clk 0:00:26.4]} 28.
Qd6+ {[%clk 0:01:17.6]} 28... Qc7 {[%clk 0:00:22.2]} 29. Nxc2 {[%clk 0:00:55.3]}
29... Nc3 {[%clk 0:00:17.6]} 30. Re1 {[%clk 0:00:52.3]} 30... Ne4 {[%clk
0:00:10.6]} 31. Qxc7+ {[%clk 0:00:51.8]} 31... Rxc7 {[%clk 0:00:11.5]} 32. Nb4
{[%clk 0:00:52.2]} 32... Kb7 {[%clk 0:00:10.7]} 33. Kg2 {[%clk 0:00:29.7]} 33...
a5 {[%clk 0:00:09.7]} 34. Na2 {[%clk 0:00:28]} 34... Rc2 {[%clk 0:00:09.7]} 35.
Nc1 {[%clk 0:00:25.2]} 35... Rhc8 {[%clk 0:00:10.2]} 36. Ne2 {[%clk 0:00:24.4]}
36... Ra2 {[%clk 0:00:09.2]} 37. g4 {[%clk 0:00:18.9]} 37... Rcc2 {[%clk
0:00:09]} 38. Nc1 {[%clk 0:00:12]} 38... Rxa3 {[%clk 0:00:08]} 39. g5 {[%clk
0:00:11.3]} 39... hxg5 {[%clk 0:00:05.8]} 40. Ne2 {[%clk 0:00:03.3]} 40... g4
{[%clk 0:00:04.8]} 41. Nh2 {[%clk 0:00:03.3]} 41... g3 {[%clk 0:00:04.5]} 42.
Ng4 {[%clk 0:00:03.9]} 42... gxf2 {[%clk 0:00:04.2]} 43. Bxf2 {[%clk 0:00:04.8]}
43... Raa2 {[%clk 0:00:03.1]} 44. Kf3 {[%clk 0:00:05.3]} 44... Nd2+ {[%clk
0:00:02.3]} 45. Kf4 {[%clk 0:00:04.9]} 45... Ne4 {[%clk 0:00:02.2]} 46. Kf3
{[%clk 0:00:05.3]} 46... a4 {[%clk 0:00:02.4]} 47. Ne3 {[%clk 0:00:05.8]} 47...
Ra3 {[%clk 0:00:02.1]} 48. Kf4 {[%clk 0:00:05.7]} 48... Rd2 {[%clk 0:00:02.4]}
49. Bg1 {[%clk 0:00:05.6]} 49... Raa2 {[%clk 0:00:02]} 50. h6 {[%clk 0:00:06.1]}
50... gxh6 {[%clk 0:00:02]} 51. Ng3 {[%clk 0:00:06.6]} 51... Nc3 {[%clk
0:00:02]} 52. Rf1 {[%clk 0:00:05.9]} 52... Ne2+ {[%clk 0:00:02.2]} 53. Nxe2
{[%clk 0:00:06.2]} 53... Rxe2 {[%clk 0:00:03.1]} 54. Kg4 {[%clk 0:00:07.1]}
54... a3 {[%clk 0:00:03.5]} 55. Rxf7+ {[%clk 0:00:07.2]} 55... Ka6 {[%clk
0:00:04.2]} 56. Nd1 {[%clk 0:00:07.4]} 56... Re1 {[%clk 0:00:04.2]} 57. Nc3
{[%clk 0:00:07.5]} 57... Rxg1+ {[%clk 0:00:04.4]} 58. Kh3 {[%clk 0:00:07.1]}
58... Rc2 {[%clk 0:00:04.7]} 59. Rc7 {[%clk 0:00:03.4]} 59... a2 {[%clk
0:00:04.1]} 60. Nxd5 {[%clk 0:00:03.8]} 60... Rxc7 {[%clk 0:00:03.9]} 0-1